[Event "Late-Titled-Tuesday-Blitz-January-16-2024"]
[Site "Chess.com"]
[Date "2024.01.16"]
[Round "5"]
[White "HalfIsCrayfish"]
[Black "MusicCityMaster"]
[Result "1-0"]
[WhiteElo "2614"]
[BlackElo "2417"]
[TimeControl "180+1"]
[EndTime "14:54:11 PST"]
[Termination "HalfIsCrayfish won by checkmate"]

1. d4 {[%clk 0:03:00.9]} 1... Nf6 {[%clk 0:02:59.6]} 2. c4 {[%clk 0:03:01.2]}
2... c5 {[%clk 0:03:00.3]} 3. d5 {[%clk 0:03:01.4]} 3... b5 {[%clk 0:03:01]} 4.
Qc2 {[%clk 0:03:01.3]} 4... e6 {[%clk 0:03:00.4]} 5. e4 {[%clk 0:03:01.3]} 5...
bxc4 {[%clk 0:03:00.5]} 6. Bxc4 {[%clk 0:03:00.8]} 6... exd5 {[%clk 0:03:01.2]}
7. exd5 {[%clk 0:03:01.3]} 7... d6 {[%clk 0:03:01.9]} 8. Nc3 {[%clk 0:03:00.6]}
8... Be7 {[%clk 0:03:02.3]} 9. Nge2 {[%clk 0:03:00.8]} 9... O-O {[%clk
0:03:02.7]} 10. O-O {[%clk 0:03:01.5]} 10... Nbd7 {[%clk 0:03:01.1]} 11. Nf4
{[%clk 0:02:44.2]} 11... Nb6 {[%clk 0:02:59.1]} 12. Be2 {[%clk 0:02:44.3]} 12...
g6 {[%clk 0:02:55.8]} 13. Re1 {[%clk 0:02:39.6]} 13... Bf5 {[%clk 0:02:55.4]}
14. Bd3 {[%clk 0:02:39.9]} 14... Bxd3 {[%clk 0:02:48.9]} 15. Qxd3 {[%clk
0:02:40.8]} 15... Re8 {[%clk 0:02:46.9]} 16. Bd2 {[%clk 0:02:31.9]} 16... Bf8
{[%clk 0:02:43.9]} 17. b3 {[%clk 0:02:30.4]} 17... Qd7 {[%clk 0:02:39.9]} 18. h3
{[%clk 0:02:24.5]} 18... Bg7 {[%clk 0:02:38.1]} 19. Rxe8+ {[%clk 0:02:22.3]}
19... Rxe8 {[%clk 0:02:37.8]} 20. Re1 {[%clk 0:02:22.7]} 20... Rxe1+ {[%clk
0:02:33.7]} 21. Bxe1 {[%clk 0:02:23.6]} 21... Qe7 {[%clk 0:02:27.6]} 22. Bd2
{[%clk 0:02:17.6]} 22... h5 {[%clk 0:02:01.5]} 23. a4 {[%clk 0:02:05]} 23... g5
{[%clk 0:01:36.5]} 24. Nfe2 {[%clk 0:01:56.7]} 24... Nfxd5 {[%clk 0:01:29.6]}
25. Nxd5 {[%clk 0:01:56.2]} 25... Nxd5 {[%clk 0:01:30]} 26. Qxd5 {[%clk
0:01:35.4]} 26... Qxe2 {[%clk 0:01:27.7]} 27. Qxg5 {[%clk 0:01:16.9]} 27... Qd1+
{[%clk 0:01:15.5]} 28. Kh2 {[%clk 0:01:16.7]} 28... Qxb3 {[%clk 0:01:15.3]} 29.
Qd8+ {[%clk 0:01:14.5]} 29... Kh7 {[%clk 0:01:12.9]} 30. Qxd6 {[%clk 0:01:13.9]}
30... Qxa4 {[%clk 0:01:04.7]} 31. Qd3+ {[%clk 0:01:13.6]} 31... Kh8 {[%clk
0:01:00.5]} 32. Qd8+ {[%clk 0:01:13.5]} 32... Kh7 {[%clk 0:00:59.6]} 33. Qd3+
{[%clk 0:01:14.2]} 33... Kg8 {[%clk 0:00:57.5]} 34. Qd8+ {[%clk 0:01:12.8]}
34... Kh7 {[%clk 0:00:52.8]} 35. Qd5 {[%clk 0:01:10.2]} 35... Qd4 {[%clk
0:00:45.3]} 36. Qxh5+ {[%clk 0:01:08.9]} 36... Kg8 {[%clk 0:00:45.7]} 37. Be3
{[%clk 0:00:47.3]} 37... Qe5+ {[%clk 0:00:45.3]} 38. Qxe5 {[%clk 0:00:46.4]}
38... Bxe5+ {[%clk 0:00:46.2]} 39. Kg1 {[%clk 0:00:43.9]} 39... Bd4 {[%clk
0:00:42.9]} 40. Bd2 {[%clk 0:00:39.3]} 40... c4 {[%clk 0:00:38.9]} 41. Kf1
{[%clk 0:00:38.7]} 41... c3 {[%clk 0:00:39.2]} 42. Bc1 {[%clk 0:00:38.8]} 42...
a5 {[%clk 0:00:38]} 43. Ke2 {[%clk 0:00:39.1]} 43... a4 {[%clk 0:00:32.8]} 44.
f3 {[%clk 0:00:29]} 44... f6 {[%clk 0:00:28.5]} 45. Kd3 {[%clk 0:00:29.3]} 45...
Be5 {[%clk 0:00:28.5]} 46. Kc4 {[%clk 0:00:29.5]} 46... c2 {[%clk 0:00:15.2]}
47. Kb4 {[%clk 0:00:26.8]} 47... a3 {[%clk 0:00:13.4]} 48. Kxa3 {[%clk
0:00:26.6]} 48... Kf7 {[%clk 0:00:13]} 49. Kb3 {[%clk 0:00:27.1]} 49... Bg3
{[%clk 0:00:13.2]} 50. Kxc2 {[%clk 0:00:26.8]} 50... Ke6 {[%clk 0:00:14]} 51.
Kd3 {[%clk 0:00:27.3]} 51... Kf5 {[%clk 0:00:14.4]} 52. Ke2 {[%clk 0:00:27.7]}
52... Ke5 {[%clk 0:00:13.7]} 53. Be3 {[%clk 0:00:27.9]} 53... f5 {[%clk
0:00:13.8]} 54. Bf2 {[%clk 0:00:27.8]} 54... Bf4 {[%clk 0:00:13.6]} 55. g3
{[%clk 0:00:27.8]} 55... Bh6 {[%clk 0:00:13.8]} 56. Be3 {[%clk 0:00:25.8]} 56...
Bg7 {[%clk 0:00:13.2]} 57. Bc1 {[%clk 0:00:25.2]} 57... Bf8 {[%clk 0:00:12.8]}
58. Bb2+ {[%clk 0:00:25]} 58... Ke6 {[%clk 0:00:13.4]} 59. f4 {[%clk 0:00:25.1]}
59... Bc5 {[%clk 0:00:13.3]} 60. Kf3 {[%clk 0:00:25.4]} 60... Bb6 {[%clk
0:00:13.2]} 61. g4 {[%clk 0:00:25.8]} 61... fxg4+ {[%clk 0:00:12.4]} 62. hxg4
{[%clk 0:00:26.4]} 62... Kf7 {[%clk 0:00:12.8]} 63. f5 {[%clk 0:00:23.8]} 63...
Bc5 {[%clk 0:00:12.8]} 64. g5 {[%clk 0:00:23.7]} 64... Be7 {[%clk 0:00:11.5]}
65. g6+ {[%clk 0:00:23.9]} 65... Kg8 {[%clk 0:00:10.9]} 66. f6 {[%clk
0:00:22.7]} 66... Bd6 {[%clk 0:00:11.1]} 67. Kg4 {[%clk 0:00:22.4]} 67... Bc5
{[%clk 0:00:10.6]} 68. Kf5 {[%clk 0:00:22.5]} 68... Bb4 {[%clk 0:00:10.7]} 69.
Ke6 {[%clk 0:00:22.5]} 69... Bc5 {[%clk 0:00:10.9]} 70. f7+ {[%clk 0:00:22.8]}
70... Kf8 {[%clk 0:00:09.1]} 71. g7# {[%clk 0:00:23.4]} 1-0

[Event "Late-Titled-Tuesday-Blitz-January-16-2024"]
[Site "Chess.com"]
[Date "2024.01.16"]
[Round "5"]
[White "nindjaxx8"]
[Black "IPAchess"]
[Result "0-1"]
[WhiteElo "2561"]
[BlackElo "2394"]
[TimeControl "180+1"]
[EndTime "14:54:11 PST"]
[Termination "IPAchess won by resignation"]

1. d4 {[%clk 0:02:54.7]} 1... d5 {[%clk 0:02:58.4]} 2. c4 {[%clk 0:02:54.7]}
2... e6 {[%clk 0:02:58.4]} 3. Nc3 {[%clk 0:02:54.6]} 3... Nf6 {[%clk 0:02:59.1]}
4. cxd5 {[%clk 0:02:54.9]} 4... exd5 {[%clk 0:02:59]} 5. Bg5 {[%clk 0:02:54.8]}
5... c6 {[%clk 0:02:59.3]} 6. e3 {[%clk 0:02:54.8]} 6... h6 {[%clk 0:02:59.9]}
7. Bh4 {[%clk 0:02:54.8]} 7... Be7 {[%clk 0:03:00.6]} 8. Nf3 {[%clk 0:02:55]}
8... O-O {[%clk 0:03:01.2]} 9. Bd3 {[%clk 0:02:55]} 9... Re8 {[%clk 0:02:59.8]}
10. O-O {[%clk 0:02:55.1]} 10... Ne4 {[%clk 0:02:56.8]} 11. Bxe7 {[%clk
0:02:54.5]} 11... Qxe7 {[%clk 0:02:56.8]} 12. Qc2 {[%clk 0:02:55.1]} 12... Nd7
{[%clk 0:02:53.4]} 13. Rab1 {[%clk 0:02:52.6]} 13... a5 {[%clk 0:02:45.6]} 14.
a3 {[%clk 0:02:51.7]} 14... Nd6 {[%clk 0:02:42.2]} 15. b4 {[%clk 0:02:47.8]}
15... axb4 {[%clk 0:02:41.6]} 16. axb4 {[%clk 0:02:48.7]} 16... b5 {[%clk
0:02:12.6]} 17. Ne2 {[%clk 0:02:43.9]} 17... Bb7 {[%clk 0:02:12]} 18. Ra1 {[%clk
0:02:41.8]} 18... Nb6 {[%clk 0:02:10.9]} 19. Ne5 {[%clk 0:02:40.1]} 19... Nbc4
{[%clk 0:02:09.5]} 20. Bxc4 {[%clk 0:02:28.3]} 20... Nxc4 {[%clk 0:02:06.4]} 21.
Nd3 {[%clk 0:02:22.3]} 21... Reb8 {[%clk 0:01:59.7]} 22. Nc5 {[%clk 0:02:20.9]}
22... Bc8 {[%clk 0:02:00.2]} 23. h3 {[%clk 0:02:16]} 23... Qg5 {[%clk
0:01:56.7]} 24. Nf4 {[%clk 0:02:00.8]} 24... Bf5 {[%clk 0:01:57.3]} 25. Qc3
{[%clk 0:01:59.8]} 25... Qe7 {[%clk 0:01:47.3]} 26. Nfd3 {[%clk 0:01:25.7]}
26... Qg5 {[%clk 0:01:43.1]} 27. Nf4 {[%clk 0:01:23.9]} 27... Qe7 {[%clk
0:01:42.7]} 28. Kh1 {[%clk 0:01:20.7]} 28... Qh4 {[%clk 0:01:31.8]} 29. Rxa8
{[%clk 0:01:01]} 29... Rxa8 {[%clk 0:01:30.7]} 30. Ra1 {[%clk 0:01:01.6]} 30...
Rxa1+ {[%clk 0:01:23]} 31. Qxa1 {[%clk 0:01:02.5]} 31... Qxf2 {[%clk 0:01:22.9]}
32. Qa8+ {[%clk 0:00:14.7]} 32... Kh7 {[%clk 0:01:23]} 33. Qb8 {[%clk
0:00:07.8]} 33... Nxe3 {[%clk 0:00:59.8]} 34. Qe5 {[%clk 0:00:08.2]} 34... Qe1+
{[%clk 0:00:32.4]} 35. Kh2 {[%clk 0:00:05.2]} 35... Nf1+ {[%clk 0:00:32.7]} 36.
Kg1 {[%clk 0:00:04.9]} 36... Qxe5 {[%clk 0:00:15.3]} 37. dxe5 {[%clk 0:00:05.8]}
37... Ne3 {[%clk 0:00:15.1]} 38. g4 {[%clk 0:00:04.1]} 38... Bb1 {[%clk
0:00:11.1]} 39. Nd7 {[%clk 0:00:02.1]} 39... Nc2 {[%clk 0:00:10]} 40. Kf2 {[%clk
0:00:01.9]} 40... Nxb4 {[%clk 0:00:10.2]} 41. e6 {[%clk 0:00:02]} 41... fxe6
{[%clk 0:00:10.1]} 42. Nxe6 {[%clk 0:00:02.9]} 42... Nd3+ {[%clk 0:00:09.4]} 43.
Ke3 {[%clk 0:00:02.8]} 43... Nb4 {[%clk 0:00:09.3]} 44. Kd4 {[%clk 0:00:02.7]}
44... Be4 {[%clk 0:00:06]} 45. h4 {[%clk 0:00:01.3]} 45... Nc2+ {[%clk
0:00:05.6]} 46. Kc5 {[%clk 0:00:01.9]} 46... b4 {[%clk 0:00:06]} 47. Nd4 {[%clk
0:00:02.3]} 47... Nxd4 {[%clk 0:00:05.6]} 48. Kxd4 {[%clk 0:00:03.2]} 48... Bf3
{[%clk 0:00:05.7]} 49. g5 {[%clk 0:00:03.2]} 49... hxg5 {[%clk 0:00:05.8]} 50.
hxg5 {[%clk 0:00:04.1]} 50... Be4 {[%clk 0:00:05.5]} 51. Ne5 {[%clk 0:00:02.5]}
51... b3 {[%clk 0:00:05.9]} 52. Kc3 {[%clk 0:00:02.8]} 52... Bc2 {[%clk
0:00:05]} 53. Nxc6 {[%clk 0:00:03]} 53... Kg6 {[%clk 0:00:05.4]} 54. Ne7+ {[%clk
0:00:03.2]} 54... Kxg5 {[%clk 0:00:05.5]} 55. Nxd5 {[%clk 0:00:03.9]} 55... Kf5
{[%clk 0:00:05.7]} 56. Ne3+ {[%clk 0:00:03.6]} 56... Ke4 {[%clk 0:00:06.1]} 57.
Ng2 {[%clk 0:00:02.5]} 57... g5 {[%clk 0:00:05.5]} 58. Ne1 {[%clk 0:00:01.8]}
58... Ke3 {[%clk 0:00:05.5]} 59. Nd3 {[%clk 0:00:01.2]} 59... Bxd3 {[%clk
0:00:05.2]} 0-1

[Event "Late-Titled-Tuesday-Blitz-January-16-2024"]
[Site "Chess.com"]
[Date "2024.01.16"]
[Round "5"]
[White "Chessbard1972"]
[Black "Brahianzevich"]
[Result "1-0"]
[WhiteElo "2411"]
[BlackElo "2427"]
[TimeControl "180+1"]
[EndTime "14:54:12 PST"]
[Termination "Chessbard1972 won by resignation"]

1. d4 {[%clk 0:03:00.2]} 1... d5 {[%clk 0:01:55.5]} 2. c4 {[%clk 0:02:58.7]}
2... e6 {[%clk 0:01:55.2]} 3. Nc3 {[%clk 0:02:58.3]} 3... Bb4 {[%clk 0:01:55.2]}
4. e3 {[%clk 0:02:55]} 4... Nf6 {[%clk 0:01:55.2]} 5. Bd2 {[%clk 0:02:54.5]}
5... O-O {[%clk 0:01:55.1]} 6. Nf3 {[%clk 0:02:52.8]} 6... c5 {[%clk 0:01:49.8]}
7. dxc5 {[%clk 0:02:51.5]} 7... Bxc5 {[%clk 0:01:45.3]} 8. cxd5 {[%clk
0:02:40.8]} 8... exd5 {[%clk 0:01:46.2]} 9. Nb5 {[%clk 0:02:39.7]} 9... Nc6
{[%clk 0:01:44]} 10. Bc3 {[%clk 0:02:37.7]} 10... a6 {[%clk 0:01:28.7]} 11. Nbd4
{[%clk 0:02:35.6]} 11... Ne4 {[%clk 0:01:24.3]} 12. Be2 {[%clk 0:02:30]} 12...
Nxc3 {[%clk 0:01:22.7]} 13. bxc3 {[%clk 0:02:29.9]} 13... Qa5 {[%clk 0:01:20.9]}
14. Qd2 {[%clk 0:02:28.7]} 14... Bg4 {[%clk 0:01:03.3]} 15. O-O {[%clk
0:02:25.4]} 15... Rfd8 {[%clk 0:00:55]} 16. h3 {[%clk 0:02:23.3]} 16... Bh5
{[%clk 0:00:54.9]} 17. a4 {[%clk 0:02:16.8]} 17... Bxf3 {[%clk 0:00:35]} 18.
Nxf3 {[%clk 0:02:12.1]} 18... Rac8 {[%clk 0:00:31.6]} 19. Rfb1 {[%clk
0:02:09.9]} 19... Rc7 {[%clk 0:00:25.8]} 20. Qb2 {[%clk 0:02:05.3]} 20... Be7
{[%clk 0:00:20]} 21. Nd4 {[%clk 0:01:52.5]} 21... Ne5 {[%clk 0:00:18.7]} 22. Rc1
{[%clk 0:01:44.1]} 22... Rdc8 {[%clk 0:00:17.4]} 23. Nf5 {[%clk 0:01:36.6]}
23... Bf8 {[%clk 0:00:16.1]} 24. Rd1 {[%clk 0:01:28.4]} 24... g6 {[%clk
0:00:15.8]} 25. Ng3 {[%clk 0:01:22.1]} 25... Nc4 {[%clk 0:00:14.3]} 26. Bxc4
{[%clk 0:01:19.6]} 26... Rxc4 {[%clk 0:00:15.2]} 27. Qxb7 {[%clk 0:01:17.2]}
27... Rxc3 {[%clk 0:00:14.5]} 28. Qxd5 {[%clk 0:01:14]} 28... Qxd5 {[%clk
0:00:14.4]} 29. Rxd5 {[%clk 0:01:13.5]} 29... Rc1+ {[%clk 0:00:13.7]} 30. Rd1
{[%clk 0:01:12.2]} 30... Rxa1 {[%clk 0:00:13.1]} 31. Rxa1 {[%clk 0:01:11.7]}
31... Rc2 {[%clk 0:00:12.7]} 32. Ne4 {[%clk 0:01:08.8]} 32... Bg7 {[%clk
0:00:12.6]} 33. Ra3 {[%clk 0:01:01.1]} 33... f5 {[%clk 0:00:12.2]} 34. Ng5
{[%clk 0:00:56.8]} 34... Bf8 {[%clk 0:00:10.6]} 35. Rb3 {[%clk 0:00:54.4]} 35...
Rc1+ {[%clk 0:00:08.5]} 36. Kh2 {[%clk 0:00:53.5]} 36... h6 {[%clk 0:00:08.4]}
37. Ne6 {[%clk 0:00:51.5]} 37... Bd6+ {[%clk 0:00:08.8]} 38. f4 {[%clk
0:00:50.9]} 38... Kf7 {[%clk 0:00:08.7]} 39. Nd4 {[%clk 0:00:49.1]} 39... Rc4
{[%clk 0:00:08.4]} 40. Rb6 {[%clk 0:00:46.8]} 40... Bc5 {[%clk 0:00:08.9]} 41.
Rxa6 {[%clk 0:00:39.7]} 41... Bxd4 {[%clk 0:00:09.3]} 42. exd4 {[%clk
0:00:39.5]} 42... Rxd4 {[%clk 0:00:10.2]} 43. Kg3 {[%clk 0:00:38.8]} 43... Rd3+
{[%clk 0:00:10.3]} 44. Kf2 {[%clk 0:00:37.9]} 44... Rd2+ {[%clk 0:00:10.1]} 45.
Kf3 {[%clk 0:00:38.5]} 45... Rd3+ {[%clk 0:00:10.6]} 46. Ke2 {[%clk 0:00:38.6]}
46... Ra3 {[%clk 0:00:10.3]} 47. a5 {[%clk 0:00:35.8]} 47... Ra2+ {[%clk
0:00:10.9]} 48. Kf3 {[%clk 0:00:35]} 48... Ra3+ {[%clk 0:00:10.8]} 49. Kf2
{[%clk 0:00:34]} 49... Ra2+ {[%clk 0:00:11.5]} 50. Kg3 {[%clk 0:00:33.8]} 50...
Ra3+ {[%clk 0:00:11.9]} 51. Kh4 {[%clk 0:00:31.9]} 51... Ra4 {[%clk 0:00:11.9]}
52. g3 {[%clk 0:00:29.7]} 52... g5+ {[%clk 0:00:11.9]} 53. Kh5 {[%clk 0:00:29]}
53... gxf4 {[%clk 0:00:12.4]} 54. gxf4 {[%clk 0:00:26.9]} 54... Rxf4 {[%clk
0:00:13.3]} 55. Rxh6 {[%clk 0:00:24.2]} 55... Ra4 {[%clk 0:00:12.1]} 56. a6
{[%clk 0:00:21.1]} 56... Ra3 {[%clk 0:00:05.5]} 57. Kg5 {[%clk 0:00:20.2]} 57...
Ra5 {[%clk 0:00:04.9]} 58. h4 {[%clk 0:00:19.5]} 58... Kg7 {[%clk 0:00:04.9]}
59. Rb6 {[%clk 0:00:18.4]} 59... f4+ {[%clk 0:00:02.6]} 60. Kxf4 {[%clk
0:00:17.3]} 60... Ra4+ {[%clk 0:00:03.5]} 61. Ke5 {[%clk 0:00:16.5]} 61... Rxh4
{[%clk 0:00:03.7]} 62. Kd6 {[%clk 0:00:15.6]} 62... Ra4 {[%clk 0:00:03.1]} 63.
Kc7 {[%clk 0:00:15.1]} 63... Kf7 {[%clk 0:00:03.7]} 64. Kb7 {[%clk 0:00:15.3]}
64... Ra1 {[%clk 0:00:02.8]} 65. a7 {[%clk 0:00:15.4]} 1-0

[Event "Late-Titled-Tuesday-Blitz-January-16-2024"]
[Site "Chess.com"]
[Date "2024.01.16"]
[Round "5"]
[White "subham777"]
[Black "GlavkonVVS"]
[Result "0-1"]
[WhiteElo "2582"]
[BlackElo "2461"]
[TimeControl "180+1"]
[EndTime "14:54:13 PST"]
[Termination "GlavkonVVS won by checkmate"]

1. e4 {[%clk 0:03:00.9]} 1... Nf6 {[%clk 0:03:00.1]} 2. Nc3 {[%clk 0:03:00.1]}
2... d5 {[%clk 0:02:59.9]} 3. e5 {[%clk 0:03:00.2]} 3... Nfd7 {[%clk 0:02:58.9]}
4. d4 {[%clk 0:02:59.8]} 4... e6 {[%clk 0:02:59.4]} 5. Nf3 {[%clk 0:02:59.7]}
5... c5 {[%clk 0:03:00]} 6. dxc5 {[%clk 0:03:00.4]} 6... Bxc5 {[%clk 0:02:59.7]}
7. Bd3 {[%clk 0:03:00]} 7... Nc6 {[%clk 0:02:59.8]} 8. Bf4 {[%clk 0:02:59.9]}
8... Be7 {[%clk 0:02:57.6]} 9. h4 {[%clk 0:02:59.3]} 9... a6 {[%clk 0:02:52.3]}
10. Qe2 {[%clk 0:02:53.6]} 10... b5 {[%clk 0:02:50.6]} 11. a3 {[%clk 0:02:36.1]}
11... Nc5 {[%clk 0:02:49.9]} 12. h5 {[%clk 0:02:32.2]} 12... h6 {[%clk
0:02:49.9]} 13. Rh3 {[%clk 0:02:22.8]} 13... b4 {[%clk 0:02:46.4]} 14. axb4
{[%clk 0:02:17]} 14... Nxb4 {[%clk 0:02:46.7]} 15. Rg3 {[%clk 0:02:15.6]} 15...
Kf8 {[%clk 0:02:36.5]} 16. Nd4 {[%clk 0:02:10.4]} 16... Bd7 {[%clk 0:02:22.7]}
17. Rf3 {[%clk 0:02:03.6]} 17... Ncxd3+ {[%clk 0:02:17.1]} 18. cxd3 {[%clk
0:02:01.1]} 18... Rc8 {[%clk 0:01:54.5]} 19. Kf1 {[%clk 0:01:45]} 19... Kg8
{[%clk 0:01:53.9]} 20. Rg3 {[%clk 0:01:39.5]} 20... Kh7 {[%clk 0:01:53.1]} 21.
Qg4 {[%clk 0:01:34.3]} 21... Rg8 {[%clk 0:01:51.3]} 22. Re1 {[%clk 0:01:22.7]}
22... Bh4 {[%clk 0:01:49.9]} 23. Rf3 {[%clk 0:01:14.3]} 23... Be8 {[%clk
0:01:47.8]} 24. Bd2 {[%clk 0:01:07.1]} 24... a5 {[%clk 0:01:44.3]} 25. Ncb5
{[%clk 0:01:00.1]} 25... Be7 {[%clk 0:01:36.6]} 26. Bf4 {[%clk 0:00:48.4]} 26...
Nc2 {[%clk 0:01:32.2]} 27. Nxc2 {[%clk 0:00:38.4]} 27... Bxb5 {[%clk 0:01:29.8]}
28. Nd4 {[%clk 0:00:36]} 28... Bd7 {[%clk 0:01:29.2]} 29. Bd2 {[%clk 0:00:20.2]}
29... Be8 {[%clk 0:01:22]} 30. Rg3 {[%clk 0:00:18.1]} 30... Rb8 {[%clk
0:01:18.5]} 31. Bc3 {[%clk 0:00:15.2]} 31... Bb4 {[%clk 0:01:16.4]} 32. Bxb4
{[%clk 0:00:10.4]} 32... Rxb4 {[%clk 0:01:16.5]} 33. Rf3 {[%clk 0:00:06.5]}
33... Qb6 {[%clk 0:01:13.7]} 34. Rf4 {[%clk 0:00:06.7]} 34... Rxb2 {[%clk
0:01:12.8]} 35. Kg1 {[%clk 0:00:04.8]} 35... Rb1 {[%clk 0:01:12.9]} 36. Rxb1
{[%clk 0:00:04.2]} 36... Qxb1+ {[%clk 0:01:13]} 37. Kh2 {[%clk 0:00:04.8]} 37...
Qxd3 {[%clk 0:01:13.6]} 38. Rf3 {[%clk 0:00:03.6]} 38... Qe4 {[%clk 0:01:12.3]}
39. Rf4 {[%clk 0:00:03.9]} 39... Qxe5 {[%clk 0:01:11.9]} 40. g3 {[%clk
0:00:04.6]} 40... a4 {[%clk 0:01:11.1]} 41. Qd1 {[%clk 0:00:05.2]} 41... Qg5
{[%clk 0:01:07.7]} 42. Qd3+ {[%clk 0:00:04.2]} 42... Kh8 {[%clk 0:01:08]} 43.
Qc2 {[%clk 0:00:03.1]} 43... Qxh5+ {[%clk 0:01:07.9]} 44. Rh4 {[%clk 0:00:03.2]}
44... Qe5 {[%clk 0:01:07]} 45. Nf3 {[%clk 0:00:02.9]} 45... Qf6 {[%clk
0:01:07.1]} 46. Qd2 {[%clk 0:00:02.7]} 46... Rf8 {[%clk 0:01:04]} 47. Nd4 {[%clk
0:00:01.9]} 47... e5 {[%clk 0:01:01.8]} 48. Ne2 {[%clk 0:00:01.9]} 48... d4
{[%clk 0:01:01.4]} 49. Ng1 {[%clk 0:00:01.8]} 49... Bc6 {[%clk 0:00:55.5]} 50.
Nh3 {[%clk 0:00:02.4]} 50... Kg8 {[%clk 0:00:48]} 51. f4 {[%clk 0:00:02.4]}
51... e4 {[%clk 0:00:46.6]} 52. f5 {[%clk 0:00:01.9]} 52... e3 {[%clk
0:00:46.4]} 53. Qd3 {[%clk 0:00:02.4]} 53... Rd8 {[%clk 0:00:44.8]} 54. Rf4
{[%clk 0:00:02.8]} 54... Qe5 {[%clk 0:00:44.1]} 55. Ng1 {[%clk 0:00:02.9]} 55...
Qd5 {[%clk 0:00:44.2]} 56. Nf3 {[%clk 0:00:01.8]} 56... Qc5 {[%clk 0:00:38.3]}
57. Rxd4 {[%clk 0:00:02.1]} 57... Rxd4 {[%clk 0:00:37.1]} 58. Qxd4 {[%clk
0:00:03]} 58... Qxd4 {[%clk 0:00:36.7]} 59. Nxd4 {[%clk 0:00:03.9]} 59... a3
{[%clk 0:00:36.1]} 60. Kg1 {[%clk 0:00:04.3]} 60... a2 {[%clk 0:00:36.2]} 61.
Nc2 {[%clk 0:00:05]} 61... Ba4 {[%clk 0:00:36.3]} 62. Na1 {[%clk 0:00:05.3]}
62... Bd1 {[%clk 0:00:35.7]} 63. Kf1 {[%clk 0:00:05.7]} 63... e2+ {[%clk
0:00:36.1]} 64. Ke1 {[%clk 0:00:06.3]} 64... Kf8 {[%clk 0:00:36.7]} 65. Kd2
{[%clk 0:00:06.7]} 65... Ke7 {[%clk 0:00:37.1]} 66. g4 {[%clk 0:00:07.2]} 66...
Kf6 {[%clk 0:00:37.3]} 67. Ke1 {[%clk 0:00:08]} 67... Kg5 {[%clk 0:00:37.1]} 68.
f6 {[%clk 0:00:08.3]} 68... Kxf6 {[%clk 0:00:36.9]} 69. Kf2 {[%clk 0:00:08.5]}
69... Kg5 {[%clk 0:00:37.2]} 70. Ke1 {[%clk 0:00:09.1]} 70... Kxg4 {[%clk
0:00:37.5]} 71. Kf2 {[%clk 0:00:10]} 71... h5 {[%clk 0:00:37.7]} 72. Ke1 {[%clk
0:00:10.9]} 72... h4 {[%clk 0:00:38.1]} 73. Kd2 {[%clk 0:00:11.8]} 73... h3
{[%clk 0:00:38.2]} 74. Nb3 {[%clk 0:00:12.7]} 74... h2 {[%clk 0:00:38]} 75. Nc1
{[%clk 0:00:13.1]} 75... a1=Q {[%clk 0:00:37.5]} 76. Nd3 {[%clk 0:00:13.6]}
76... Qa2+ {[%clk 0:00:36.8]} 77. Ke3 {[%clk 0:00:14.2]} 77... Qa3 {[%clk
0:00:37]} 78. Kf2 {[%clk 0:00:14.2]} 78... h1=Q {[%clk 0:00:34.9]} 79. Ne5+
{[%clk 0:00:13.9]} 79... Kh5 {[%clk 0:00:35]} 80. Nf3 {[%clk 0:00:13.9]} 80...
Qaxf3# {[%clk 0:00:35.1]} 0-1

[Event "Late-Titled-Tuesday-Blitz-January-16-2024"]
[Site "Chess.com"]
[Date "2024.01.16"]
[Round "5"]
[White "Goryachkina"]
[Black "sina101"]
[Result "0-1"]
[WhiteElo "2681"]
[BlackElo "2542"]
[TimeControl "180+1"]
[EndTime "14:54:18 PST"]
[Termination "sina101 won on time"]

1. e4 {[%clk 0:02:57]} 1... c6 {[%clk 0:02:59.9]} 2. d4 {[%clk 0:02:56.5]} 2...
d5 {[%clk 0:03:00.3]} 3. e5 {[%clk 0:02:57]} 3... Bf5 {[%clk 0:02:59.7]} 4. Bd3
{[%clk 0:02:57]} 4... Bxd3 {[%clk 0:02:59.1]} 5. Qxd3 {[%clk 0:02:57.9]} 5... e6
{[%clk 0:02:59.4]} 6. Ne2 {[%clk 0:02:57.1]} 6... Ne7 {[%clk 0:02:56]} 7. O-O
{[%clk 0:02:55.8]} 7... Nf5 {[%clk 0:02:55.1]} 8. Nd2 {[%clk 0:02:54.3]} 8...
Be7 {[%clk 0:02:53.3]} 9. Nf3 {[%clk 0:02:53.3]} 9... Nd7 {[%clk 0:02:50.6]} 10.
c3 {[%clk 0:02:46.3]} 10... O-O {[%clk 0:02:15.4]} 11. g4 {[%clk 0:02:45.2]}
11... Nh4 {[%clk 0:02:15.8]} 12. Nxh4 {[%clk 0:02:45.2]} 12... Bxh4 {[%clk
0:02:16.7]} 13. f4 {[%clk 0:02:45.3]} 13... Be7 {[%clk 0:01:59.4]} 14. f5 {[%clk
0:02:41.6]} 14... Bg5 {[%clk 0:01:43.2]} 15. Ng3 {[%clk 0:02:31]} 15... c5
{[%clk 0:01:34.2]} 16. Kh1 {[%clk 0:02:21.4]} 16... cxd4 {[%clk 0:01:28.6]} 17.
cxd4 {[%clk 0:02:21.2]} 17... Rc8 {[%clk 0:01:25.9]} 18. Bxg5 {[%clk 0:01:50.1]}
18... Qxg5 {[%clk 0:01:26.8]} 19. Nh5 {[%clk 0:01:46.6]} 19... Rc4 {[%clk
0:01:00.2]} 20. b3 {[%clk 0:01:44.6]} 20... Rc6 {[%clk 0:00:59.9]} 21. Qg3
{[%clk 0:01:34.3]} 21... exf5 {[%clk 0:00:37.7]} 22. Rxf5 {[%clk 0:01:21.7]}
22... Rc1+ {[%clk 0:00:32.1]} 23. Kg2 {[%clk 0:01:03.7]} 23... Rc2+ {[%clk
0:00:31.4]} 24. Kh3 {[%clk 0:00:54.4]} 24... Qd2 {[%clk 0:00:29.6]} 25. Raf1
{[%clk 0:00:49.3]} 25... Qxd4 {[%clk 0:00:21.6]} 26. e6 {[%clk 0:00:34.4]} 26...
fxe6 {[%clk 0:00:16.3]} 27. Rxf8+ {[%clk 0:00:30.8]} 27... Nxf8 {[%clk
0:00:17.2]} 28. Qd6 {[%clk 0:00:27.7]} 28... Qd3+ {[%clk 0:00:13.9]} 29. Ng3
{[%clk 0:00:27.6]} 29... Rc8 {[%clk 0:00:06.4]} 30. Qe7 {[%clk 0:00:22.1]} 30...
Qg6 {[%clk 0:00:05.6]} 31. g5 {[%clk 0:00:20]} 31... h6 {[%clk 0:00:05.1]} 32.
Qxb7 {[%clk 0:00:05.8]} 32... Rc2 {[%clk 0:00:03.3]} 33. Qb8 {[%clk 0:00:03.8]}
33... Kh7 {[%clk 0:00:01.3]} 34. Rxf8 {[%clk 0:00:02.5]} 34... Qxg5 {[%clk
0:00:02]} 35. Rh8+ {[%clk 0:00:02.8]} 35... Kg6 {[%clk 0:00:02.4]} 36. Qe8+
{[%clk 0:00:03.6]} 36... Kf6 {[%clk 0:00:03]} 37. Rf8+ {[%clk 0:00:03.8]} 37...
Ke5 {[%clk 0:00:03.6]} 38. Qb8+ {[%clk 0:00:04.3]} 38... Kd4 {[%clk 0:00:03.9]}
39. Rf4+ {[%clk 0:00:04.3]} 39... Ke3 {[%clk 0:00:03.4]} 40. Rh4 {[%clk
0:00:04.2]} 40... Rxh2+ {[%clk 0:00:02.5]} 41. Kxh2 {[%clk 0:00:04.6]} 41...
Qxh4+ {[%clk 0:00:03.3]} 42. Kg2 {[%clk 0:00:05.3]} 42... Qg4 {[%clk 0:00:03.2]}
43. Qxa7+ {[%clk 0:00:05.6]} 43... d4 {[%clk 0:00:03.8]} 44. Qb7 {[%clk
0:00:05.2]} 44... d3 {[%clk 0:00:02.4]} 45. Qb6+ {[%clk 0:00:05.4]} 45... Kd2
{[%clk 0:00:02.1]} 46. Qf2+ {[%clk 0:00:05.6]} 46... Kc3 {[%clk 0:00:02.6]} 47.
Qc5+ {[%clk 0:00:04.7]} 47... Kd2 {[%clk 0:00:02.7]} 48. Qf2+ {[%clk 0:00:04.6]}
48... Kc3 {[%clk 0:00:03.2]} 49. Qc5+ {[%clk 0:00:04.8]} 49... Kd2 {[%clk
0:00:03.5]} 50. Qa5+ {[%clk 0:00:05]} 50... Kd1 {[%clk 0:00:02.6]} 51. Qc5
{[%clk 0:00:04.2]} 51... d2 {[%clk 0:00:02.7]} 52. a4 {[%clk 0:00:03.5]} 52...
Ke1 {[%clk 0:00:03]} 53. Qe3+ {[%clk 0:00:03.6]} 53... Kd1 {[%clk 0:00:03.2]}
54. a5 {[%clk 0:00:03.7]} 54... Kc2 {[%clk 0:00:03.5]} 55. Qc5+ {[%clk
0:00:03.9]} 55... Kb2 {[%clk 0:00:02.4]} 56. Qd6 {[%clk 0:00:03.5]} 56... d1=Q
{[%clk 0:00:02.1]} 57. Qe5+ {[%clk 0:00:01.8]} 57... Kb1 {[%clk 0:00:01.1]} 0-1